Cogmind - Beta 13 @@@ ROGUE MODE // 2024.04.09 @ 03:10:40 Player: GregoriusTechneticies Result: Destroyed by D-53 Grenadier with Mini Grenade Launcher Performance ------------- Evolutions (0) 0 Regions Visited (2) 400 Robots Destroyed (21) 105 Value Destroyed (239) 239 Prototype IDs (0) 0 Alien Tech Used (0) 0 Bonus (0) 0 TOTAL SCORE: 744 Bonus ------- None Cogmind --------- Core Integrity 0/250 Matter 300/300 Energy 50/100 System Corruption 0% Temperature Cool (0) Movement Core (100) Ox1 Location -10/Mines Parts ------- > --- POWER (1) -------- (None) > --- PROPULSION (2) --- (None) > --- UTILITY (2) ------ ECM Suite > --- WEAPON (2) ------- Particle Gun > --- INVENTORY (5) ---- Structural Scanner Signal Interpreter Improved Terrain Scanner Small Laser Rocket Launcher Peak State ------------ > --- POWER ------------ Light Ion Engine > --- PROPULSION ------- Wheel Wheel > --- UTILITY ---------- Small Storage Unit Improved Terrain Scanner > --- WEAPON ----------- Assault Rifle Light Assault Rifle > --- INVENTORY -------- Ion Engine Light Ion Engine Wheel Compact Wheel Improved Terrain Scanner Seismic Detector Tractor Beam Mining Laser [Rating: 10] Favorites ----------- Power Light Ion Engine Engine Light Ion Engine Propulsion Wheel Wheel Wheel Utility Improved Terrain Scanner Device Improved Terrain Scanner Storage Small Storage Unit Weapon Assault Rifle Energy Gun Particle Gun Ballistic Gun Assault Rifle Launcher Grenade Launcher Special Weapon Mining Laser Build | -11 -10 -10 ------- Run | Yrd Mat Min Slots Evolved . | . . . Power . | . . . Propulsion . | . . . Utility . | . . . Weapon . | . . . Parts Attached 21 | 9 6 6 Power 2 | 1 1 . Engine 2 | 1 1 . Core . | . . . Reactor . | . . . Propulsion 7 | 4 2 1 Treads . | . . . Leg . | . . . Wheel 7 | 4 2 1 Hover . | . . . Flight . | . . . Utility 4 | 2 1 1 Device 3 | 1 1 1 Storage 1 | 1 . . Processor . | . . . Hackware . | . . . Protection . | . . . Artifact . | . . . Weapon 8 | 2 2 4 Energy Gun 1 | . . 1 Energy Cannon . | . . . Ballistic Gun 4 | 2 1 1 Ballistic Cannon . | . . . Launcher 2 | . . 2 Special Weapon 1 | . 1 . Impact Weapon . | . . . Slashing Weapon . | . . . Piercing Weapon . | . . . Special Melee Weapon . | . . . Unidentified Prototypes . | . . . Parts Lost 9 | . 2 7 Power 1 | . . 1 Propulsion 3 | . 1 2 Utility 2 | . . 2 Weapon 3 | . 1 2 Highest Loss Streak 7 | . 1 7 To Critical Strikes . | . . . Average Slot Usage (%) 91 | . 92 90 Engine 13 | . 14 12 Wheel 25 | . 24 26 Device 27 | . 26 28 Ballistic Gun 18 | . 24 13 Launcher 4 | . . 8 Naked Turns . | . . . Heaviest Build 12 | 12 12 10 Greatest Support 26 | 26 20 20 Greatest Overweight (x) 1 | . . 1 Average Overweight (x) . | . . . Largest Inventory Capacity 8 | 8 8 5 Average Capacity 6 | 7 5 5 Most Carried 8 | 8 8 5 Average Carried 5 | 6 4 4 Final Capacity 8 | 8 5 5 Final Carried 8 | 8 3 5 Class Distribution -------------------- 59% | Mutant 40% | Scavenger-Mutant Dominant Class ---------------- Mutant | -10/Materials Scavenger-Mutant | -10/Mines Resources | -11 -10 -10 ----------- Run | Yrd Mat Min Matter Collected 729 | 502 149 78 Remotely . | . . . Salvage Created 641 | 326 312 3 Parts 55 | 32 21 2 Haulers Intercepted . | . . . Recyclers Shooed 1 | . 1 . Parts Field Recycled . | . . . Retrieved Matter . | . . . Parts Self-Destructed . | . . . Prevented . | . . . Kills | -11 -10 -10 ------- Run | Yrd Mat Min Combat Hostiles Destroyed 4 | . 4 . Guns 4 | . 4 . Classes Destroyed 5 | 3 2 . Worker 6 | 4 1 1 Tunneler 8 | 8 . . Recycler 2 | 1 1 . Watcher 1 | . 1 . Grunt 4 | . 4 . Best Kill Streak 3 | 3 2 1 Combat Bots Only 2 | . 2 . Max Kills in Single Turn 1 | 1 1 1 Gunslinging . | . . . Exploded . | . . . Melee . | . . . Uniques/NPCs Destroyed . | . . . Combat | -11 -10 -10 -------- Run | Yrd Mat Min Hostile Shots Fired 50 | . 40 10 Missed 9 | . 8 1 Damage Taken 809 | . 418 391 Core 250 | . 106 144 Absorbed by Shields . | . . . Core Remaining (%) 100 | 100 . . Volleys Fired 92 | 53 32 7 Largest 2 | 2 2 2 Hottest 100 | 40 100 50 Shots Fired 168 | 106 54 8 Gun 165 | 106 52 7 Cannon . | . . . Launcher 1 | . . 1 Special 2 | . 2 . Kinetic 165 | 106 52 7 Thermal 2 | . 2 . Explosive 1 | . . 1 Electromagnetic . | . . . Robot Hit Streak 12 | 12 5 2 Robot Miss Streak 7 | 7 3 2 Penetration Max . | . . . Secondary Targets 1 | . 1 . Max Gunslinging Chain 1 | . 1 . Shots Hit Robots 90 | 58 28 4 Core Hits 35 | 19 15 1 Critical Kills 1 | . 1 . Critical Parts Destroyed . | . . . Critical Strikes 1 | . 1 . Destroy 1 | . 1 . Melee Attacks . | . . . Impact . | . . . Slashing . | . . . Piercing . | . . . Sneak Attacks . | . . . Combat Hostiles . | . . . Follow-up Attacks . | . . . Damage Inflicted 976 | 584 326 66 Guns 934 | 584 318 32 Cannons . | . . . Explosions 34 | . . 34 Melee . | . . . Ramming 8 | . 8 . Kinetic 934 | 584 318 32 Thermal . | . . . Explosive 34 | . . 34 Electromagnetic . | . . . Impact . | . . . Slashing . | . . . Piercing . | . . . Highest Corruption . | . . . Average Corruption . | . . . Corruption Purged . | . . . Corruption Blocked . | . . . Overload Shots . | . . . Overflow Damage . | . . . Projectiles . | . . . Explosions . | . . . Melee . | . . . Knockbacks . | . . . Impact . | . . . Kinetic . | . . . Secondary . | . . . Self-Inflicted Damage 34 | . 4 30 Shots 1 | . . 1 Rammed 1 | . 1 . Targets Rammed 1 | . 1 . Kicked . | . . . Crushed . | . . . Highest Temperature 57 | . 57 . Average Temperature 20 | . 20 . Received Heat Transfer 264 | . 264 . Siege Activations . | . . . Robots Corrupted . | . . . Combat Hostiles . | . . . Parts Fried . | . . . Impact Corruptions . | . . . Robots Melted . | . . . Combat Hostiles . | . . . Parts Melted . | . . . Heat Transferred . | . . . Parts Sabotaged . | . . . Parts Stolen . | . . . Parts Stripped . | . . . Power Chain Reactions . | . . . Alert | -11 -10 -10 ------- Run | Yrd Mat Min Peak Influence 122 | 60 122 57 Initial 47 | . 3 47 Average 41 | 30 52 49 Maximum Alert Level . | . . . Low Security (%) 100 | 100 100 100 Level 1 . | . . . Level 2 . | . . . Level 3 . | . . . Level 4 . | . . . Level 5 . | . . . High Security . | . . . Max Security . | . . . Squads Dispatched 1 | . 1 . Investigation . | . . . Extermination . | . . . Reinforcement 1 | . 1 . Assault . | . . . Garrison . | . . . Intercept . | . . . Searches Triggered . | . . . Construction Impeded . | . . . Haulers Reinforced . | . . . Active Scanning Responses . | . . . Cargo Convoy Interrupts . | . . . Stealth | -11 -10 -10 --------- Run | Yrd Mat Min Distress Signals 1 | . 1 . Communications Jammed . | . . . Distress Signals . | . . . Times Spotted 14 | . 12 2 Peak Tracking Total 5 | . 5 2 Tactical Retreats . | . . . Traps | -11 -10 -10 ------- Run | Yrd Mat Min Traps Triggered . | . . . Indirectly . | . . . Trap Hack Attempts . | . . . Triggered . | . . . Disarmed . | . . . Reprogrammed . | . . . Reused . | . . . Traps Extracted . | . . . Installed . | . . . Triggered . | . . . Machines | -11 -10 -10 ---------- Run | Yrd Mat Min Machines Disabled . | . . . Max in Single Turn . | . . . Machines Repaired . | . . . Machines Dismantled . | . . . Machines Sabotaged . | . . . Overloaded Fab Kills . | . . . Hacking | -11 -10 -10 --------- Run | Yrd Mat Min Machines Accessed 1 | . 1 . Terminals 1 | . 1 . Fabricators . | . . . Repair Stations . | . . . Recycling Units . | . . . Scanalyzers . | . . . Garrison Access . | . . . Total Hacks 4 | . 4 . Successful 1 | . 1 . Failed 3 | . 3 . Catastrophic . | . . . Database Lockouts . | . . . Manual 4 | . 4 . Terminals 4 | . 4 . Fabricators . | . . . Repair Stations . | . . . Recycling Units . | . . . Scanalyzers . | . . . Garrison Access . | . . . Terminal Hacks . | . . . Fabricator Hacks . | . . . Repair Station Hacks . | . . . Recycling Unit Hacks . | . . . Scanalyzer . | . . . Garrison Access Hacks . | . . . Unauthorized Hacks 1 | . 1 . Terminals 1 | . 1 . Botnet 1 | . 1 . Fabricators . | . . . Repair Stations . | . . . Recycling Units . | . . . Scanalyzers . | . . . Garrison Access . | . . . Data Cores Recovered . | . . . Used . | . . . Hacking Detections 1 | . 1 . Full Trace Events . | . . . Feedback Events . | . . . Feedback Blocked . | . . . Robot Schematics Acquired . | . . . Robots Built . | . . . Authchips . | . . . Time . | . . . Total Robot Build Rating . | . . . Part Schematics Acquired . | . . . Parts Built . | . . . Authchips . | . . . Time . | . . . Total Part Build Rating . | . . . Parts Repaired . | . . . Time . | . . . Parts Recycled . | . . . Recycled Matter . | . . . Retrieved Matter . | . . . Retrieved Components . | . . . Parts Scanalyzed . | . . . Part Schematics Acquired . | . . . Parts Damaged . | . . . Bothacking | -11 -10 -10 ------------ Run | Yrd Mat Min Used RIF Installer . | . . . Robots Hacked . | . . . Non-combat . | . . . Combat . | . . . Robot Hacks Applied . | . . . Relay Couplers Released . | . . . Fabnet Peak Effective % . | . . . Robots Rewired . | . . . Allies Hacked . | . . . Hacks Repelled . | . . . Allies | -11 -10 -10 -------- Run | Yrd Mat Min Total Allies . | . . . Largest Group . | . . . Highest-Rated Group . | . . . Highest-Rated Ally . | . . . Total Orders . | . . . Ally Attacks . | . . . Total Damage . | . . . Kills . | . . . Allies Corrupted . | . . . Allies Melted . | . . . Intel | -11 -10 -10 ------- Run | Yrd Mat Min Robot Analysis Total . | . . . Derelict Logs Recovered 1 | . . 1 Drone Launches . | . . . Drone Recoveries . | . . . Exploration | -11 -10 -10 ------------- Run | Yrd Mat Min Turns Passed 1003 | 430 250 323 Spaces Moved 817 | 312 143 362 Core 2 | 1 . 1 Treads . | . . . Legs . | . . . Wheels 815 | 311 143 361 Hover . | . . . Flight . | . . . Fastest Speed 50 | 50 80 80 Average Speed 80 | 81 80 80 Slowest Speed 100 | 90 80 100 Overloaded Moves . | . . . Propulsion Burnouts . | . . . Robots Hopped . | . . . Cave-ins Triggered . | . . . Exploration Rate (%) 27 | 6 32 45 Regions Visited 2 Branch Regions 1 Pre-discovered Areas . | . . . Known Exits Taken . | . . . Unknown Exits Taken 2 | 1 1 . Scrap Searched 1 | . . 1 Spaces Dug 2 | . 2 . Terrain Destroyed 7 | . 2 5 Melee . | . . . Projectile 2 | . 2 . AOE 5 | . . 5 Terrain Rammed . | . . . Walls Destroyed . | . . . Machines Disabled . | . . . Actions | -11 -10 -10 --------- Run | Yrd Mat Min Total 1005 | 390 228 387 Wait 31 | . 25 6 Move 815 | 311 142 362 Hop . | . . . Pick Up 26 | 12 10 4 Fast Attach 10 | 7 1 2 Attach 3 | . 1 2 Detach . | . . . Swap 8 | 2 4 2 Drop 19 | 5 12 2 Fire 92 | 53 32 7 Melee . | . . . Ram 1 | . 1 . Kick . | . . . Crush . | . . . Escape Stasis . | . . . Rewire . | . . . Trap . | . . . Miscellaneous . | . . . Route ------- -11/Scrapyard -10/Materials -10/Mines History --------- Turn | Location | Event 16 | -11/Scrapyard | Discovered new exit (range 15) 431 | -11/Scrapyard | Entered Materials 432 | -10/Materials | Build established: Mutant 657 | -10/Materials | Discovered new exit (range 9) 681 | -10/Materials | Entered Mines 692 | -10/Mines | Met a Derelict bent on vengeance 732 | -10/Mines | Assembled infested the area 737 | -10/Mines | Assisted by a Guerilla fighting off Assembled 803 | -10/Mines | Received a Rocket Launcher from a helpful Derelict 900 | -10/Mines | Build established: Scavenger-Mutant 994 | -10/Mines | Learned Materials terminal intel 999 | -10/Mines | Core integrity fell below 50% 1003 | -10/Mines | Core integrity fell below 20% 1004 | -10/Mines | Destroyed by D-53 Grenadier with Mini Grenade Launcher Last Messages --------------- 00843_ K-01 Serf collects debris. 00870_ Destroyed Lgt. Ion Engine. 00874_ K-01 Serf destroyed. 00876_ Extracted 40 matter. 00877_ Acquired 3 matter. 00879_ Dropped Wheel. 00976_ Lgt. Ion Engine destroyed. 00978_ Wheel destroyed. 00994_ Acquired derelict log, extracted data. Data stored: Materials terminal intel. 00996_ Imp. Terrain Scanner destroyed. 00998_ Assault Rifle destroyed. 00998_ Grenade Launcher destroyed. 00998_ R-06 Scavenger destroyed. 00998_ K-01 Serf destroyed. 01001_ Acquired Sml. Laser. 01002_ Acquired Particle Gun. 01003_ Wheel destroyed. 01004_ Acquired 20 matter. 01004_ Seismic Detector destroyed. Map ----- +----------------------------------------------------+ | ????????????????????????????????????????????????? | | ????????????????????????????????????????????????? | | ????????????????????????????????????????????????? | | ????????????????????????????????????????????????? | | ????????????????????????????????????????????????? | | ????????????????????????????????????????????????? | | ????????????????????????????????????????????????? | | ????????????????????????????????????????????????? | | ????????????????????????????????????????????????? | | ????????????????????????????????????????????????? | | ?????????????????????? #????????????????????????? | | ????????????????????? #???????????????????????? | | ?????????????????????"k ##?????????????????????? | | ?????????????????????? #?????????????????????? | | ?????????????????????? #?????????????????????? | | ?????????????????????? #?????????????????????? | | ?????????????????????? #?????????????????????? | | ?????????????????????? ##????????????????????? | | ??????????????????????# #????????????????????? | | ?????????????????????## #????????????????????? | | ????????????????????## #????????????????????? | | ???????????????????## #????????????????????? | | ???????????????????# ##???????????????????? | | ???????????????????# ##??????????????????? | | ???????????????????# #??????????????????? | | ???????????????????## ! @ #??????????????????? | | ???????????????????# #??????????????????? | | ???????????????????# #??????????????????? | | ???????????????#???# #??????????????????? | | ???????????????????# ##??????????????????? | | ???????????????###### ##??????#????????????? | | ?????????????# ######????????? ???????? | | ???????????????##### td## ##?????? ?????#?? | | ???????????? ??????###d # ##### ???????? | | ????????????## ###### ?#?#??? | | ??????????# ???????? | | ??????????# ########## ## ##??????? | | ???????????? ????#???????# ##?????????????#??? | | ????????????????????????## #?????#???????????? | | ????????????????????????# ##????????#######??? | | ????????????##??????????# ####???????## ###? | | ??????????????????#?????# ##???####### #?? | | ?????? ???????##?????#### #?#?# #?? | | ?????????#???#???????# # #???# #### #?? | | ???????#??##????????## ##??# #??## #?? | | ????????????#??###### #??# ##??## """ #?? | | ?#?????????????# ##?## #??#?## """ ### | | ?????????????#?# #???# #?#???# """ | | ???????????#???# #### #?#?# #????## ### | | ????????????#?## #??# ##?#?# ###### #? | +----------------------------------------------------+ Best States ------------- Heat Dissipation 25 Energy Generation 10 Energy Capacity 125 Matter Stores 300 Matter Capacity 300 Sight Range 16 Terrain Scan Range 16 Terrain Scan Density 10 ECM Strength 1 Evasion (%) 44 Item Schematics ----------------- None Robot Schematics ------------------ None Fabricated ------------ Nothing Alien Tech Used ----------------- None Achievements -------------- None Challenges ------------ None Game ------ Seed AntimatterAlloyRail Manual? 0 Play Time 00:14:29 Cumulative 18.6 hours Start 2024.04.09 @ 02:40:26 End 2024.04.09 @ 03:10:40 Sessions 1 Manual Loads 0 Difficulty Rogue Special Mode None Game No. 20 Rogue 5 Adventurer 0 Explorer 15 Win Type - Total 0 Types 0/0/0/0/0/0/0/0/0 Lore% 13 Gallery% 23 Achievement% 18 Wizard Run 0 Options --------- Layout 1 ASCII 0 Keyboard 0 Movement Mouse Keybinds 0 Fullscreen 1 Font 24/Smallcaps Map View 50x35 Zoom Use 0% Tactical HUD 1 Map Filters NONE Filters NONE Steam 1 RUN: 06f30f96-64d4-4e38-af61-f15fff7099fd